fUSD/lending_fUSD_20240920
["ID","MTS","AMOUNT","RATE_DAILY","PERIOD"]
[338635935,1726830303024,150.0,0.00011688,2]
[338635936,1726830303351,150.0,0.00012337,2]
[338635937,1726830305589,150.0,0.00011688,2]
[338635938,1726830309961,150.0,0.00011987,2]
[338635939,1726830312785,150.0,0.00011688,2]
[338635940,1726830314696,150.0,0.00011688,2]
[338635941,1726830323430,150.0,0.00011688,2]
[338635942,1726830350450,500.0,0.00011164,2]
[338635943,1726830365956,2500.0,0.000127,2]
[338635944,1726830372357,250.0,0.00011979,2]
[338635945,1726830385239,154.0,0.0001198,2]
[338635946,1726830448124,200.0,0.00011164,2]
[338635947,1726830482052,421.90097643,0.00012668,2]
[338635948,1726830500758,161.56888771,0.00012227,2]
[338635949,1726830503798,679.31,0.00011995,2]
[338635954,1726830565890,1000.0,0.00012026,2]
[338635955,1726830595484,309.93054932,0.00012699,2]
[338635956,1726830600639,309.93054932,0.00012721,2]
[338635957,1726830606642,200.0,0.0001204,2]
[338635963,1726830631993,-309.93054932,0.00012744,2]
[338635964,1726830632003,-300.0,0.00012766,2]
[338635965,1726830632012,-309.93054932,0.00012766,2]
[338635966,1726830632021,-3836.48707708,0.0001278,2]
[338635967,1726830632238,-19356.65182428,0.0001278,2]
[338635972,1726830638061,-0.95281115,0.0001278,2]
[338635973,1726830638161,-345.69,0.0001278,2]
[338635974,1726830638172,-106065.38059037,0.0001278,2]
[338635975,1726830638297,-3313.291423,0.0001278,2]
[338635976,1726830638309,-14706.11175,0.0001278,2]
[338635982,1726830640108,-1530.15088773,0.0001278,2]
[338635983,1726830640148,-318.68662008,0.0001278,2]
[338635984,1726830640291,-598.804378,0.0001278,2]
[338636098,1726830646044,-24171.56660372,0.0001278,2]
[338636099,1726830646222,-999.26329655,0.0001278,2]
[338636100,1726830646245,-690.600222,0.0001278,2]
[338636103,1726830668192,6707.79367929,0.00012688,2]
[338636104,1726830691267,2844.589,0.0001268,2]
[338636105,1726830691691,250.0,0.00011983,2]
[338636106,1726830692890,171.6,0.00011983,2]
[338636107,1726830727212,23900.0,0.00012031,2]
[338636108,1726830728980,2000.0,0.00012742,5]
[338636109,1726830753778,200.0,0.00012678,2]
[338636110,1726830770207,150.65,0.00012031,2]
[338636111,1726830772843,669.63,0.00010065,2]
[338636112,1726830773082,669.63,0.00012329,2]
[338636113,1726830794453,10578.29,0.00012742,5]
[338636114,1726830824956,32130.447,0.0001268,2]
[338636115,1726830836029,20000.0,0.00012742,2]
[338636116,1726830842740,250.0,0.00011986,2]
[338636117,1726830850689,64410.2654,0.0001268,2]
[338636118,1726830888109,213.0,0.0001269,2]
[338636119,1726830898451,76964.9529,0.0001268,2]
[338636120,1726830967319,421.90097643,0.00012653,2]
[338636121,1726830975443,39018.8152,0.0001268,2]
[338636122,1726831006897,100000.0,0.0001268,2]
[338636123,1726831020293,126051.00112485,0.0001268,2]
[338636124,1726831020567,-293.02153959,0.0001268,2]
[338636125,1726831021214,-198.65667606,0.0001268,2]
[338636126,1726831021669,-173.45,0.0001266,2]
[338636127,1726831022134,-159.60007761,0.0001266,2]
[338636128,1726831022555,-150.0,0.0001266,2]
[338636129,1726831023172,-150.0,0.0001266,2]
[338636130,1726831023790,-150.0,0.0001266,2]
[338636131,1726831024851,-150.0,0.0001266,2]
[338636132,1726831025335,-150.0,0.0001266,2]
[338636133,1726831025963,-150.0,0.0001266,2]
[338636134,1726831026631,-150.0,0.0001266,2]
[338636135,1726831027029,-150.0,0.0001266,2]
[338636136,1726831027762,-150.0,0.0001266,2]
[338636137,1726831028125,-150.0,0.0001266,2]
[338636138,1726831028568,-150.0,0.0001266,2]
[338636139,1726831029178,-150.0,0.0001266,2]
[338636140,1726831029681,-150.0,0.0001266,2]
[338636141,1726831030483,-150.0,0.0001266,2]
[338636142,1726831031094,-150.0,0.0001266,2]
[338636143,1726831031869,-150.0,0.0001266,2]
[338636144,1726831032359,-150.0,0.0001266,2]
[338636145,1726831032865,-150.0,0.0001266,2]
[338636146,1726831034227,-150.0,0.0001266,2]
[338636147,1726831034786,-150.0,0.0001266,2]
[338636148,1726831035318,-150.0,0.0001266,2]
[338636149,1726831035877,-150.0,0.0001266,2]
[338636150,1726831037207,-11.95142291,0.0001266,2]
[338636151,1726831037230,-138.04857709,0.0001268,2]
[338636152,1726831038019,-150.0,0.0001268,2]
[338636153,1726831038487,-150.0,0.0001268,2]
[338636154,1726831039492,-150.0,0.0001268,2]
[338636155,1726831040130,-150.0,0.0001268,2]
[338636156,1726831040519,-150.0,0.0001268,2]
[338636157,1726831041000,-150.0,0.0001268,2]
[338636158,1726831041830,-150.0,0.0001268,2]
[338636159,1726831042490,-150.0,0.0001268,2]
[338636160,1726831043092,-150.0,0.0001268,2]
[338636161,1726831043823,-150.0,0.0001268,2]
[338636162,1726831044322,-150.0,0.0001268,2]
[338636163,1726831044974,-150.0,0.0001268,2]
[338636164,1726831045372,-150.0,0.0001268,2]
[338636165,1726831046427,-150.0,0.0001268,2]
[338636166,1726831047029,-150.0,0.0001268,2]
[338636167,1726831047974,-150.0,0.0001268,2]
[338636168,1726831048472,-150.0,0.0001268,2]
[338636169,1726831049157,-150.0,0.0001268,2]
[338636170,1726831051234,-150.0,0.0001268,2]
[338636171,1726831051543,150.0,0.00011164,2]
[338636172,1726831051608,-150.0,0.0001268,2]
[338636173,1726831052151,1.58511,0.00010068,2]
[338636174,1726831052171,151.58511,0.00010068,2]
[338636175,1726831052192,151.58511,0.00010068,2]
[338636176,1726831052212,151.58511,0.00010068,2]
[338636177,1726831052232,151.58511,0.00010068,2]
[338636178,1726831052253,92.07445,0.00010068,2]
[338636179,1726831053726,57.92555,0.00011438,2]
[338636180,1726831053749,151.58511,0.00011438,2]
[338636181,1726831053771,150.0,0.00011438,2]
[338636182,1726831053792,150.0,0.00011438,2]
[338636183,1726831053814,151.58511,0.00011438,2]
[338636184,1726831053843,38.90423,0.00011438,2]
[338636185,1726831074263,150.0,0.00011164,2]
[338636186,1726831074285,150.0,0.00011164,2]
[338636187,1726831075473,300.0,0.00010959,2]
[338636188,1726831077929,436.9,0.00011986,2]
[338636189,1726831085953,510.19577,0.00012,2]
[338636190,1726831085976,150.0,0.00012,2]
[338636191,1726831085999,150.0,0.00012,2]
[338636192,1726831086019,150.0,0.00012,2]
[338636193,1726831086042,150.0,0.00012,2]
[338636194,1726831086062,150.0,0.00012,2]
[338636195,1726831086087,150.0,0.00012,2]
[338636196,1726831086110,66.44583211,0.00012,2]
[338636197,1726831151762,150.0,0.00011919,2]
[338636198,1726831151784,50.0,0.00011919,2]
[338636199,1726831154674,150.0,0.00011,2]
[338636200,1726831154696,150.0,0.00011,2]
[338636201,1726831154718,150.0,0.00011,2]
[338636202,1726831154738,150.0,0.00011,2]
[338636203,1726831154759,150.0,0.00011,2]
[338636204,1726831154779,150.0,0.00011,2]
[338636205,1726831154799,150.0,0.00011,2]
[338636207,1726831223485,150.0,0.00011926,2]
[338636208,1726831223513,850.0,0.00011926,2]
[338636209,1726831283473,573.67,0.000149,31]
[338636210,1726831283526,573.67,0.000149,31]
[338636211,1726831283589,573.67,0.000149,31]
[338636212,1726831283652,573.67,0.000149,31]
[338636213,1726831283720,573.67,0.000149,31]
[338636214,1726831283812,573.67,0.000149,31]
[338636215,1726831283881,573.67,0.000149,31]
[338636216,1726831283946,573.67,0.000149,31]
[338636217,1726831284213,573.67,0.000149,31]
[338636218,1726831284277,573.67,0.000149,31]
[338636219,1726831284315,573.67,0.000149,31]
[338636220,1726831284343,573.67,0.000149,31]
[338636221,1726831284372,573.67,0.000149,31]
[338636222,1726831284400,573.67,0.000149,31]
[338636223,1726831284432,573.67,0.000149,31]
[338636224,1726831284461,573.67,0.000149,31]
[338636225,1726831294028,150.0,0.00011936,2]
[338636226,1726831294053,100.0,0.00011936,2]
[338636227,1726831329295,704.89,0.00011968,2]
[338636228,1726831343894,150.0,0.00010003,2]
[338636229,1726831343916,150.0,0.00010003,2]
[338636230,1726831343939,150.0,0.00010003,2]
[338636231,1726831343960,150.0,0.00010003,2]
[338636232,1726831343981,36.72,0.00010003,2]
[338636233,1726831344127,113.28,0.00012267,2]
[338636234,1726831344148,150.0,0.00012267,2]
[338636235,1726831344170,150.0,0.00012267,2]
[338636236,1726831344192,150.0,0.00012267,2]
[338636237,1726831344214,73.44,0.00012267,2]
[338636238,1726831361930,359.6,0.00011921,2]
[338636239,1726831377812,175.83,0.00022,60]
[338636240,1726831387638,150.0,0.00011968,2]
[338636241,1726831387660,100.0,0.00011968,2]
[338636242,1726831439723,150.0,0.00012,2]
[338636243,1726831439743,150.0,0.00012,2]
[338636244,1726831439763,150.0,0.00012,2]
[338636245,1726831439784,150.0,0.00012,2]
[338636246,1726831439804,150.0,0.00012,2]
[338636247,1726831439823,150.0,0.00012,2]
[338636248,1726831439843,150.0,0.00012,2]
[338636249,1726831439863,150.0,0.00012,2]
[338636250,1726831439883,150.0,0.00012,2]
[338636251,1726831439905,55.46036,0.00012,2]
[338636252,1726831447744,136.21793789,0.00012476,2]
[338636253,1726831447767,285.68303854,0.00012476,2]
[338636254,1726831474738,22799.82696146,0.00011996,2]
[338636255,1726831474762,1100.17303854,0.00011996,2]
[338636256,1726831504326,150.00000001,0.00011688,2]
[338636257,1726831523833,162.19,0.00011936,2]
[338636258,1726831524050,162.19,0.00011939,2]
[338636259,1726831524286,162.19,0.00011942,2]
[338636260,1726831524495,162.19,0.00011945,2]
[338636261,1726831524750,162.19,0.00011948,2]
[338636262,1726831524992,162.19,0.00011952,2]
[338636263,1726831525192,162.19,0.00011955,2]
[338636264,1726831525282,972.26683698,0.000108,2]
[338636265,1726831525392,162.19,0.00011958,2]
[338636266,1726831525605,162.19,0.00011961,2]
[338636267,1726831525876,162.19,0.00011964,2]
[338636268,1726831526104,162.19,0.00011967,2]
[338636269,1726831526305,162.19,0.0001197,2]
[338636270,1726831526527,162.19,0.00011974,2]
[338636271,1726831526725,162.19,0.00011977,2]
[338636272,1726831526923,162.19,0.0001198,2]
[338636273,1726831527153,162.19,0.00011983,2]
[338636274,1726831527358,162.19,0.00011986,2]
[338636275,1726831527770,162.19,0.00011989,2]
[338636276,1726831528019,162.19,0.00011993,2]
[338636277,1726831528244,162.19,0.00011996,2]
[338636278,1726831529535,579.94515437,0.000101,2]
[338636279,1726831556128,1338.44340786,6.94e-05,2]
[338636280,1726831656906,150.0,9.518e-05,2]
[338636281,1726831680150,833.94057283,0.0001,2]
[338636282,1726831715737,1017.97642847,0.00010998,2]
[338636284,1726831725778,42043.966595,0.0001,2]
[338636285,1726831736711,218.45,0.00011897,2]
[338636293,1726831832296,-250.0,0.00012029,2]
[338636294,1726831832306,-36.18192272,0.000125,2]
[338636295,1726831832405,-254.691617,0.000125,2]
[338636296,1726831832416,-150.0,0.0001258,2]
[338636297,1726831832426,-214.263,0.0001258,2]
[338636298,1726831832436,-300.0,0.00012678,2]
[338636299,1726831832447,-5022.505383,0.00012679,2]
[338636312,1726831839713,-150.0,0.00012679,2]
[338636334,1726831840808,-169.90180674,0.00012679,2]
[338636337,1726831843488,-1027.22966721,0.00012679,2]
[338636352,1726831846399,-1297.6400002,0.00012679,2]
[338636353,1726831846485,-11433.47557318,0.00012679,2]
[338636354,1726831846494,-45871.77166225,0.0001268,2]
[338636359,1726831849495,166.25,0.00010959,2]
[338636362,1726831871322,250.0,0.00011898,2]
[338636363,1726831895834,476.19,0.000149,31]
[338636364,1726831895972,476.19,0.000149,31]
[338636365,1726831896030,476.19,0.000149,31]
[338636366,1726831896090,476.19,0.000149,31]
[338636367,1726831896148,476.19,0.000149,31]
[338636368,1726831896208,476.19,0.000149,31]
[338636369,1726831896266,476.19,0.000149,31]
[338636370,1726831896326,476.19,0.000149,31]
[338636371,1726831896384,476.19,0.000149,31]
[338636372,1726831896456,476.19,0.000149,31]
[338636373,1726831896526,476.19,0.000149,31]
[338636374,1726831896572,476.19,0.000149,31]
[338636375,1726831896635,476.19,0.000149,31]
[338636376,1726831896694,476.19,0.000149,31]
[338636377,1726831896752,476.19,0.000149,31]
[338636378,1726831896817,476.19,0.000149,31]
[338636379,1726831897274,162.23486882,0.00010068,2]
[338636380,1726831897297,162.23486882,0.00010068,2]
[338636381,1726831897319,162.23486882,0.00010068,2]
[338636382,1726831897341,113.29539354,0.00010068,2]
[338636383,1726831898861,48.93947528,0.00011438,2]
[338636384,1726831898884,162.23486882,0.00011438,2]
[338636385,1726831898908,162.23486882,0.00011438,2]
[338636386,1726831898931,162.23486882,0.00011438,2]
[338636387,1726831898952,64.35591826,0.00011438,2]
[338636388,1726831938104,150.0,0.00010024,2]
[338636389,1726831938126,150.0,0.00010024,2]
[338636390,1726831938148,150.0,0.00010024,2]
[338636391,1726831938169,150.0,0.00010024,2]
[338636392,1726831938191,12.26,0.00010024,2]
[338636393,1726831959269,-150.0,0.00012288,2]
[338636394,1726831959445,-150.0,0.00012288,2]
[338636395,1726831959526,-150.0,0.00012288,2]
[338636396,1726831959599,-150.0,0.00012288,2]
[338636397,1726831959642,-12.26,0.00012288,2]
[338636398,1726831985990,-1400.0,0.00012327,2]
[338636399,1726832006716,150.0,0.00011965,2]
[338636400,1726832006738,100.0,0.00011965,2]
[338636401,1726832034873,150.0,0.00011985,2]
[338636402,1726832034894,150.0,0.00011985,2]
[338636403,1726832034917,150.0,0.00011985,2]
[338636404,1726832034940,150.0,0.00011985,2]
[338636405,1726832034963,150.0,0.00011985,2]
[338636406,1726832034987,150.0,0.00011985,2]
[338636407,1726832035008,150.0,0.00011985,2]
[338636408,1726832035029,150.0,0.00011985,2]
[338636409,1726832035055,150.0,0.00011985,2]
[338636410,1726832035076,150.0,0.00011985,2]
[338636411,1726832035098,150.0,0.00011985,2]
[338636412,1726832035123,150.0,0.00011985,2]
[338636413,1726832035144,150.0,0.00011985,2]
[338636414,1726832035167,150.0,0.00011985,2]
[338636415,1726832035188,150.0,0.00011985,2]
[338636416,1726832035210,150.0,0.00011985,2]
[338636417,1726832035232,150.0,0.00011985,2]
[338636418,1726832035254,150.0,0.00011985,2]
[338636419,1726832035276,150.0,0.00011985,2]
[338636420,1726832035297,150.0,0.00011985,2]
[338636421,1726832035320,150.0,0.00011985,2]
[338636422,1726832035342,20750.0,0.00011985,2]
[338636423,1726832059386,150.0,0.00011963,2]
[338636424,1726832059416,150.0,0.00011963,2]
[338636425,1726832059438,150.0,0.00011963,2]
[338636426,1726832059460,150.0,0.00011963,2]
[338636427,1726832059481,150.0,0.00011963,2]
[338636428,1726832059504,150.0,0.00011963,2]
[338636429,1726832059527,100.0,0.00011963,2]
[338636430,1726832077285,500.0,0.00011164,2]
[338636431,1726832166076,150.0,0.00011944,2]
[338636432,1726832240481,500.0,0.00022999,120]
[338636433,1726832240772,500.0,0.00022999,120]
[338636434,1726832241066,228.09648572,0.00022999,120]
[338636435,1726832245403,200.0,0.00023,120]
[338636436,1726832264889,500.0,0.00022999,120]
[338636437,1726832265529,500.0,0.00022999,120]
[338636438,1726832265831,500.0,0.00022999,120]
[338636439,1726832266109,500.0,0.00022999,120]
[338636440,1726832266406,364.82,0.00022999,120]
[338636441,1726832314400,150.0,0.00011839,2]
[338636442,1726832314422,128.06,0.00011839,2]
[338636443,1726832314994,150.0,0.00011839,2]
[338636444,1726832315016,4.49,0.00011839,2]
[338636445,1726832358002,161.61959537,0.00012274,2]
[338636446,1726832359779,-150.0,0.00012274,2]
[338636447,1726832360531,-22.31827199,0.00012274,2]
[338636448,1726832377262,150.0,0.00010959,2]
[338636449,1726832377285,32.18,0.00010959,2]
[338636450,1726832407505,150.0,0.00011164,2]
[338636451,1726832407529,150.0,0.00011164,2]
[338636452,1726832407553,90.39992239,0.00011164,2]
[338636453,1726832424679,150.0,0.00011887,2]
[338636454,1726832424701,100.0,0.00011887,2]
[338636455,1726832461134,174.72224562,0.00011164,2]
[338636456,1726832461160,150.0,0.00011164,2]
[338636457,1726832461183,150.0,0.00011164,2]
[338636458,1726832461205,25.27775438,0.00011164,2]
[338636459,1726832479309,150.0,9.947e-05,2]
[338636460,1726832479332,150.0,9.947e-05,2]
[338636461,1726832479357,258.54,9.947e-05,2]
[338636462,1726832507878,401.01,0.000149,31]
[338636463,1726832507956,401.01,0.000149,31]
[338636464,1726832508014,401.01,0.000149,31]
[338636465,1726832508058,401.01,0.000149,31]
[338636466,1726832508094,401.01,0.000149,31]
[338636467,1726832508134,401.01,0.000149,31]
[338636468,1726832508221,401.01,0.000149,31]
[338636469,1726832508314,401.01,0.000149,31]
[338636470,1726832508364,401.01,0.000149,31]
[338636471,1726832508418,401.01,0.000149,31]
[338636472,1726832508474,401.01,0.000149,31]
[338636473,1726832508530,401.01,0.000149,31]
[338636474,1726832508592,401.01,0.000149,31]
[338636475,1726832508693,401.01,0.000149,31]
[338636476,1726832508763,401.01,0.000149,31]
[338636477,1726832508843,401.01,0.000149,31]
[338636478,1726832520028,150.0,0.00011836,2]
[338636479,1726832520050,21.32,0.00011836,2]
[338636480,1726832541855,150.0,0.00011164,2]
[338636481,1726832552095,150.0,0.00011836,2]
[338636482,1726832552116,100.0,0.00011836,2]
[338636483,1726832576968,171.76001522,0.00022999,120]
[338636484,1726832611176,150.0,0.00011926,2]
[338636485,1726832611199,150.0,0.00011926,2]
[338636486,1726832611222,150.0,0.00011926,2]
[338636487,1726832611245,150.0,0.00011926,2]
[338636488,1726832611267,150.0,0.00011926,2]
[338636489,1726832611290,150.0,0.00011926,2]
[338636490,1726832611313,150.0,0.00011926,2]
[338636491,1726832611334,150.0,0.00011926,2]
[338636492,1726832611355,150.0,0.00011926,2]
[338636493,1726832611376,150.0,0.00011926,2]
[338636494,1726832611397,150.0,0.00011926,2]
[338636495,1726832611418,150.0,0.00011926,2]
[338636496,1726832611439,186.13221025,0.00011926,2]
[338636497,1726832611463,13683.93778975,0.00011926,2]
[338636498,1726832628285,150.0,0.00011913,2]
[338636499,1726832628317,50.0,0.00011913,2]
[338636500,1726832676769,250.0,0.00011894,2]
[338636501,1726832681753,2695.91,0.00022999,120]
[338636502,1726832682008,2695.91,0.00022999,120]
[338636503,1726832682266,2695.91,0.00022999,120]
[338636504,1726832682572,2695.91,0.00022999,120]
[338636505,1726832682841,2695.91,0.00022999,120]
[338636506,1726832683085,2695.91,0.00022999,120]
[338636507,1726832683357,2695.91,0.00022999,120]
[338636508,1726832683611,2695.91,0.00022999,120]
[338636509,1726832683996,2695.91,0.00022999,120]
[338636510,1726832684606,2695.91,0.00022999,120]
[338636511,1726832685014,2695.91,0.00022999,120]
[338636512,1726832685104,2695.91,0.00022999,120]
[338636513,1726832685360,2695.91,0.00022999,120]
[338636514,1726832685603,2695.91,0.00022999,120]
[338636515,1726832685856,2695.91,0.00022999,120]
[338636516,1726832686127,2695.91,0.00022999,120]
[338636517,1726832686447,2695.91,0.00022999,120]
[338636518,1726832686703,2695.91,0.00022999,120]
[338636519,1726832687022,2695.91,0.00022999,120]
[338636520,1726832687291,2695.91,0.00022999,120]
[338636521,1726832687570,2695.91,0.00022999,120]
[338636522,1726832687848,2695.91,0.00022999,120]
[338636523,1726832688097,2695.91,0.00022999,120]
[338636524,1726832688388,2696.12491299,0.00022999,120]
[338636525,1726832702475,150.0,0.00011688,2]
[338636526,1726832711235,150.0,0.00011688,2]
[338636527,1726832854108,223.44,0.00011827,2]
[338636528,1726832859506,150.0,0.00012,2]
[338636529,1726832859527,150.0,0.00012,2]
[338636530,1726832859546,150.0,0.00012,2]
[338636531,1726832859566,120.25238643,0.00012,2]
[338636532,1726832881985,150.0,0.0001184,2]
[338636533,1726832882006,4.68,0.0001184,2]
[338636534,1726832888442,150.0,0.0001184,2]
[338636535,1726832888465,50.0,0.0001184,2]
[338636536,1726832932399,176.64,0.00010959,2]
[338636537,1726832945960,1000.0,0.00022,60]
[338636538,1726832948226,1000.0,0.00022,60]
[338636539,1726832950717,1000.0,0.00022,60]
[338636540,1726832961647,1050.0,0.00011,2]
[338636541,1726832964010,1000.0,0.00022,60]
[338636542,1726832969762,150.0,0.0001184,2]
[338636543,1726832969783,100.0,0.0001184,2]
[338636544,1726832975745,1000.0,0.00022,60]
[338636545,1726832984960,1000.0,0.00022,60]
[338636546,1726832996376,1000.0,0.00022,60]
[338636554,1726833032292,-319.90180674,0.00012211,2]
[338636555,1726833032301,-256.11819326,0.00012211,2]
[338636564,1726833032399,-252.100228,0.00012211,2]
[338636565,1726833032411,-50.32157874,0.00012211,2]
[338636566,1726833032421,-3988.73426314,0.00012327,2]
[338636603,1726833038365,-231.46296734,0.00012327,2]
[338636604,1726833038375,-129.06971639,0.00012398,2]
[338636605,1726833038523,-255.23217447,0.00012398,2]
[338636606,1726833038533,-372.8196,0.00012434,2]
[338636607,1726833038542,-176.93267253,0.00012444,2]
[338636671,1726833039581,-91.50781347,0.00012444,2]
[338636672,1726833039591,-150.599076,0.00012444,2]
[338636673,1726833039603,-500.0,0.00012534,2]
[338636674,1726833039613,-1995.00150052,0.0001256,2]
[338636675,1726833039622,-900.0,0.0001256,2]
[338636676,1726833039631,-150.0,0.0001256,2]
[338636677,1726833039641,-300.0,0.0001256,2]
[338636678,1726833039650,-300.0,0.0001256,2]
[338636679,1726833039659,-150.599076,0.00012652,2]
[338636680,1726833039669,-150.99,0.00012652,2]
[338636681,1726833039678,-500.0,0.00012678,2]
[338636682,1726833039688,-350.69,0.00012678,2]
[338636683,1726833039697,-3149.34,0.00012678,2]
[338636684,1726833039707,-301.54,0.00012678,2]
[338636685,1726833039717,-499.99,0.00012678,2]
[338636686,1726833039726,-1412.95169315,0.0001268,2]
[338636687,1726833039737,-291.10086984,0.0001268,2]
[338636688,1726833039758,-2108.30327554,0.0001268,2]
[338636689,1726833039770,-324.58299937,0.0001268,2]
[338636690,1726833039786,-477.85701832,0.0001268,2]
[338636694,1726833040317,-1350.0,0.0001268,2]
[338636695,1726833040528,-1344.25561625,0.0001268,2]
[338636716,1726833043630,-327.30108004,0.0001268,2]
[338636722,1726833046439,-29085.28628895,0.0001268,2]
[338636723,1726833109782,2872.2,0.00023,120]
[338636724,1726833119964,341.64,0.000149,31]
[338636725,1726833120028,341.64,0.000149,31]
[338636726,1726833120094,341.64,0.000149,31]
[338636727,1726833120151,341.64,0.000149,31]
[338636728,1726833120228,341.64,0.000149,31]
[338636729,1726833120288,341.64,0.000149,31]
[338636730,1726833120337,341.64,0.000149,31]
[338636731,1726833120403,341.64,0.000149,31]
[338636732,1726833120446,341.64,0.000149,31]
[338636733,1726833120511,341.64,0.000149,31]
[338636734,1726833120572,341.64,0.000149,31]
[338636735,1726833120633,341.64,0.000149,31]
[338636736,1726833120707,341.64,0.000149,31]
[338636737,1726833120765,341.64,0.000149,31]
[338636738,1726833120817,341.64,0.000149,31]
[338636739,1726833120887,341.64,0.000149,31]
[338636740,1726833121859,500.0,0.00011164,2]
[338636741,1726833142489,579.64,9.998e-05,2]
[338636742,1726833143136,-150.0,0.00012262,2]
[338636743,1726833144008,-150.0,0.00012262,2]
[338636744,1726833144597,-150.0,0.00012262,2]
[338636745,1726833162616,150.0,0.00012,2]
[338636746,1726833162638,150.0,0.00012,2]
[338636747,1726833162660,150.0,0.00012,2]
[338636748,1726833162680,150.0,0.00012,2]
[338636749,1726833162702,150.0,0.00012,2]
[338636750,1726833162722,150.0,0.00012,2]
[338636751,1726833162742,150.0,0.00012,2]
[338636752,1726833162762,150.0,0.00012,2]
[338636753,1726833162782,150.0,0.00012,2]
[338636754,1726833162803,150.0,0.00012,2]
[338636755,1726833162824,150.0,0.00012,2]
[338636756,1726833162844,150.0,0.00012,2]
[338636757,1726833162865,150.0,0.00012,2]
[338636758,1726833162887,200.66772655,0.00012,2]
[338636759,1726833162908,36853.22691704,0.00012,2]
[338636760,1726833190172,250.0,0.00011916,2]
[338636761,1726833235919,150.0,0.00011916,2]
[338636762,1726833235941,850.0,0.00011916,2]
[338636763,1726833239079,500.0,0.00011164,2]
[338636764,1726833310765,2542.53221961,0.00022,60]
[338636765,1726833351151,230.01,0.00011985,2]
[338636766,1726833353766,2098.0,0.00022,60]
[338636767,1726833437072,5000.0,0.00022,60]
[338636769,1726833531529,563.91,0.00011861,2]
[338636770,1726833571666,250.0,0.00011851,2]
[338636772,1726833676216,152.35,0.00011829,2]
[338636773,1726833696935,196.14,0.00011839,2]
[338636774,1726833731983,287.01,0.000149,31]
[338636775,1726833732041,287.01,0.000149,31]